[Event "GrandPrix_29.05"]
[Site "Chess.com"]
[Date "2020.05.29"]
[Round "4"]
[White "WhiteCapital80"]
[Black "DariaVoit"]
[Result "1-0"]
[WhiteElo "2245"]
[BlackElo "2103"]
[TimeControl "600+2"]
[EndTime "10:56:14 PDT"]
[Termination "WhiteCapital80 won by resignation"]

1. e4 {[%clk 0:09:24]} 1... e6 {[%clk 0:09:58.9]} 2. d4 {[%clk 0:09:21.8]} 2...
d5 {[%clk 0:09:59.7]} 3. Nd2 {[%clk 0:09:19.7]} 3... Nf6 {[%clk 0:09:59.8]} 4.
e5 {[%clk 0:09:15.6]} 4... Nfd7 {[%clk 0:10:00.1]} 5. Bd3 {[%clk 0:09:17.2]}
5... c5 {[%clk 0:10:01]} 6. c3 {[%clk 0:09:18.6]} 6... Nc6 {[%clk 0:10:01.7]} 7.
Ne2 {[%clk 0:09:20.1]} 7... cxd4 {[%clk 0:10:02.4]} 8. cxd4 {[%clk 0:09:20.9]}
8... f6 {[%clk 0:10:03.6]} 9. exf6 {[%clk 0:09:21.4]} 9... Nxf6 {[%clk
0:10:04.8]} 10. Nf3 {[%clk 0:09:22.2]} 10... Bd6 {[%clk 0:10:05.2]} 11. O-O
{[%clk 0:09:22.2]} 11... O-O {[%clk 0:10:05.8]} 12. Bf4 {[%clk 0:09:22.8]} 12...
Bxf4 {[%clk 0:10:04.9]} 13. Nxf4 {[%clk 0:09:23.1]} 13... Ne4 {[%clk 0:10:05.8]}
14. Nh5 {[%clk 0:09:20.1]} 14... Ng5 {[%clk 0:09:47.3]} 15. Ne5 {[%clk
0:08:23.3]} 15... g6 {[%clk 0:08:16.5]} 16. Nxc6 {[%clk 0:08:09.8]} 16... bxc6
{[%clk 0:08:12.6]} 17. Ng3 {[%clk 0:08:09.4]} 17... Qf6 {[%clk 0:07:50.5]} 18.
Qa4 {[%clk 0:07:40.3]} 18... Bd7 {[%clk 0:06:34.1]} 19. f4 {[%clk 0:07:38.2]}
19... Nf7 {[%clk 0:06:32.5]} 20. Ne2 {[%clk 0:07:31.3]} 20... Nd6 {[%clk
0:06:25]} 21. Qb4 {[%clk 0:07:06.6]} 21... Qe7 {[%clk 0:06:01.7]} 22. b3 {[%clk
0:06:39.9]} 22... Rfb8 {[%clk 0:05:58.5]} 23. Qc5 {[%clk 0:06:38.9]} 23... Nc8
{[%clk 0:05:54.5]} 24. Rfe1 {[%clk 0:06:08]} 24... a5 {[%clk 0:05:47.7]} 25. Nc3
{[%clk 0:06:05.4]} 25... Rb4 {[%clk 0:05:40.8]} 26. g3 {[%clk 0:05:56.3]} 26...
Qf6 {[%clk 0:05:07.5]} 27. Re5 {[%clk 0:05:41.6]} 27... Qf8 {[%clk 0:04:30]} 28.
Na4 {[%clk 0:05:39.6]} 28... Rab8 {[%clk 0:04:11.4]} 29. Qc3 {[%clk 0:05:07]}
29... Kf7 {[%clk 0:02:45.5]} 30. Nc5 {[%clk 0:05:02.6]} 30... Qd6 {[%clk
0:02:40.3]} 31. Rae1 {[%clk 0:04:44]} 31... a4 {[%clk 0:01:52.7]} 32. bxa4
{[%clk 0:04:23.7]} 32... Rb2 {[%clk 0:01:50.8]} 33. Nxe6 {[%clk 0:03:46.3]}
33... Bxe6 {[%clk 0:01:37.8]} 34. Rxe6 {[%clk 0:03:47.2]} 34... Qxe6 {[%clk
0:01:39.2]} 35. Rxe6 {[%clk 0:03:48.2]} 35... Kxe6 {[%clk 0:01:41.1]} 36. Qxc6+
{[%clk 0:03:48.9]} 36... Nd6 {[%clk 0:01:39.8]} 37. Bb5 {[%clk 0:03:48.9]} 37...
Rd8 {[%clk 0:01:18.5]} 38. Qb6 {[%clk 0:03:44.1]} 38... Rb1+ {[%clk 0:00:26.6]}
39. Kg2 {[%clk 0:03:41]} 39... Rc8 {[%clk 0:00:25.6]} 40. Bd7+ {[%clk
0:03:38.7]} 40... Kxd7 {[%clk 0:00:26.9]} 41. Qxb1 {[%clk 0:03:40]} 1-0

[Event "GrandPrix_29.05"]
[Site "Chess.com"]
[Date "2020.05.29"]
[Round "4"]
[White "anesar92"]
[Black "Didici"]
[Result "1-0"]
[WhiteElo "2286"]
[BlackElo "2161"]
[TimeControl "600+2"]
[EndTime "10:56:15 PDT"]
[Termination "anesar92 won by checkmate"]

1. e4 {[%clk 0:10:01.9]} 1... e5 {[%clk 0:09:54.4]} 2. Nc3 {[%clk 0:09:59.7]}
2... Nf6 {[%clk 0:09:54.2]} 3. Bc4 {[%clk 0:10:00.3]} 3... Nxe4 {[%clk
0:09:54.1]} 4. Qh5 {[%clk 0:10:00]} 4... Nd6 {[%clk 0:09:54.7]} 5. Bb3 {[%clk
0:10:01]} 5... Be7 {[%clk 0:09:56]} 6. Qxe5 {[%clk 0:10:00.5]} 6... O-O {[%clk
0:09:52.2]} 7. Nf3 {[%clk 0:10:00.6]} 7... Bf6 {[%clk 0:09:29.5]} 8. Qf4 {[%clk
0:09:59.7]} 8... Re8+ {[%clk 0:09:28.8]} 9. Kf1 {[%clk 0:10:00.4]} 9... a5
{[%clk 0:08:30.5]} 10. d3 {[%clk 0:09:24.2]} 10... Nc6 {[%clk 0:07:28.6]} 11.
Nd5 {[%clk 0:09:04.9]} 11... Be5 {[%clk 0:06:50.5]} 12. Qg4 {[%clk 0:08:41.3]}
12... Kh8 {[%clk 0:05:51]} 13. a4 {[%clk 0:07:18.8]} 13... Bf6 {[%clk
0:05:09.9]} 14. Ng5 {[%clk 0:05:57.1]} 14... Ne5 {[%clk 0:03:17.8]} 15. Qh5
{[%clk 0:05:49.8]} 15... Bxg5 {[%clk 0:03:16.6]} 16. Bxg5 {[%clk 0:05:50.3]}
16... f6 {[%clk 0:03:17.8]} 17. Bh4 {[%clk 0:05:15.9]} 17... Ng6 {[%clk
0:02:54.9]} 18. Bg3 {[%clk 0:05:11.9]} 18... Ra6 {[%clk 0:02:52.6]} 19. Re1
{[%clk 0:04:49.1]} 19... Rxe1+ {[%clk 0:02:44.3]} 20. Kxe1 {[%clk 0:04:51]}
20... Ne8 {[%clk 0:02:36.7]} 21. Kd1 {[%clk 0:04:02.8]} 21... c6 {[%clk
0:02:31]} 22. Re1 {[%clk 0:04:00.2]} 22... Ne5 {[%clk 0:00:38.7]} 23. Bxe5
{[%clk 0:03:18.8]} 23... cxd5 {[%clk 0:00:38.9]} 24. Bg3 {[%clk 0:02:44.7]}
24... Re6 {[%clk 0:00:36.5]} 25. Bxd5 {[%clk 0:02:32.3]} 25... Rxe1+ {[%clk
0:00:35.3]} 26. Kxe1 {[%clk 0:02:32.7]} 26... Nc7 {[%clk 0:00:36.4]} 27. Bxc7
{[%clk 0:02:29.1]} 27... Qxc7 {[%clk 0:00:38]} 28. Qe8# {[%clk 0:02:29]} 1-0

[Event "GrandPrix_29.05"]
[Site "Chess.com"]
[Date "2020.05.29"]
[Round "4"]
[White "BlackBoarder"]
[Black "farhadtahirov"]
[Result "1-0"]
[WhiteElo "2148"]
[BlackElo "1854"]
[TimeControl "600+2"]
[EndTime "10:56:16 PDT"]
[Termination "BlackBoarder won by resignation"]

1. e4 {[%clk 0:10:01.9]} 1... d6 {[%clk 0:09:39.8]} 2. d4 {[%clk 0:10:01.4]}
2... g6 {[%clk 0:09:40.3]} 3. Nc3 {[%clk 0:09:58.9]} 3... Bg7 {[%clk 0:09:41.5]}
4. Be2 {[%clk 0:09:59.4]} 4... Nd7 {[%clk 0:08:54.3]} 5. h4 {[%clk 0:09:45.8]}
5... h6 {[%clk 0:08:46.3]} 6. Be3 {[%clk 0:09:20.2]} 6... c6 {[%clk 0:08:16.7]}
7. a4 {[%clk 0:09:19.9]} 7... Qc7 {[%clk 0:07:45.7]} 8. Nf3 {[%clk 0:09:13.6]}
8... Ngf6 {[%clk 0:07:44]} 9. Qd2 {[%clk 0:09:06.3]} 9... Ng4 {[%clk 0:07:26.8]}
10. Bf4 {[%clk 0:09:02.9]} 10... e5 {[%clk 0:07:04.8]} 11. Bg3 {[%clk
0:09:02.3]} 11... Nf8 {[%clk 0:06:23.4]} 12. Rd1 {[%clk 0:08:42.5]} 12... Be6
{[%clk 0:06:10.3]} 13. h5 {[%clk 0:06:54.7]} 13... Rd8 {[%clk 0:05:34.3]} 14.
hxg6 {[%clk 0:06:28]} 14... Nxg6 {[%clk 0:05:21.3]} 15. d5 {[%clk 0:06:24]}
15... Bc8 {[%clk 0:05:13.2]} 16. Nh4 {[%clk 0:06:19.1]} 16... h5 {[%clk
0:02:08.9]} 17. Nf5 {[%clk 0:04:44]} 17... Bxf5 {[%clk 0:02:05.7]} 18. exf5
{[%clk 0:04:44.5]} 18... Bh6 {[%clk 0:01:52.9]} 19. Qd3 {[%clk 0:04:37.7]} 19...
Ne7 {[%clk 0:01:13.6]} 20. dxc6 {[%clk 0:04:26.8]} 20... bxc6 {[%clk 0:01:01.6]}
21. Ne4 {[%clk 0:03:40.5]} 21... Nd5 {[%clk 0:00:26.8]} 22. Rxh5 {[%clk
0:03:20.4]} 22... Ngf6 {[%clk 0:00:19]} 23. Rh3 {[%clk 0:03:11.2]} 23... Qa5+
{[%clk 0:00:13.2]} 24. Kf1 {[%clk 0:03:02.5]} 24... Nxe4 {[%clk 0:00:11.2]} 25.
Qxe4 {[%clk 0:03:02.6]} 25... Qb4 {[%clk 0:00:12.4]} 26. Bc4 {[%clk 0:02:56.3]}
26... Ne7 {[%clk 0:00:08.2]} 27. Bxf7+ {[%clk 0:02:55.3]} 27... Kxf7 {[%clk
0:00:09.6]} 28. Qxb4 {[%clk 0:02:56.9]} 1-0

[Event "GrandPrix_29.05"]
[Site "Chess.com"]
[Date "2020.05.29"]
[Round "4"]
[White "jafarlib"]
[Black "Inkalubo"]
[Result "1-0"]
[WhiteElo "2119"]
[BlackElo "1624"]
[TimeControl "600+2"]
[EndTime "10:56:18 PDT"]
[Termination "jafarlib won on time"]

1. e4 {[%clk 0:10:01.9]} 1... Nf6 {[%clk 0:09:59.6]} 2. e5 {[%clk 0:10:01.7]}
2... Nd5 {[%clk 0:09:59.9]} 3. c4 {[%clk 0:10:03.2]} 3... Nb6 {[%clk 0:10:00]}
4. c5 {[%clk 0:10:04.7]} 4... Nd5 {[%clk 0:10:00.5]} 5. Bc4 {[%clk 0:10:06.3]}
5... e6 {[%clk 0:10:01.2]} 6. Nc3 {[%clk 0:10:07.7]} 6... Nxc3 {[%clk
0:10:00.3]} 7. bxc3 {[%clk 0:10:09.6]} 7... Nc6 {[%clk 0:10:00.1]} 8. d4 {[%clk
0:10:05.6]} 8... d6 {[%clk 0:09:54.5]} 9. cxd6 {[%clk 0:10:02.8]} 9... cxd6
{[%clk 0:09:55.3]} 10. exd6 {[%clk 0:10:00.7]} 10... Bxd6 {[%clk 0:09:55.1]} 11.
Nf3 {[%clk 0:09:59.3]} 11... O-O {[%clk 0:09:48]} 12. O-O {[%clk 0:09:57.1]}
12... b6 {[%clk 0:09:37.7]} 13. Re1 {[%clk 0:09:52.5]} 13... Bb7 {[%clk
0:09:31.8]} 14. Bd3 {[%clk 0:09:39.4]} 14... g6 {[%clk 0:09:07.4]} 15. Bg5
{[%clk 0:08:51.7]} 15... Be7 {[%clk 0:09:05.1]} 16. Bh6 {[%clk 0:08:48.3]} 16...
Re8 {[%clk 0:09:05.6]} 17. Qd2 {[%clk 0:08:46.5]} 17... Rc8 {[%clk 0:08:18.1]}
18. Qf4 {[%clk 0:08:33.2]} 18... Bd6 {[%clk 0:07:19]} 19. Qg4 {[%clk 0:07:24.4]}
19... Ne7 {[%clk 0:06:42.8]} 20. Rac1 {[%clk 0:07:03.3]} 20... Bxf3 {[%clk
0:06:14.4]} 21. Qxf3 {[%clk 0:06:59.1]} 21... Nd5 {[%clk 0:04:41.3]} 22. Be4
{[%clk 0:06:41.9]} 22... Qh4 {[%clk 0:04:25.3]} 23. Bd2 {[%clk 0:06:23.8]} 23...
Qxh2+ {[%clk 0:04:11.3]} 24. Kf1 {[%clk 0:06:23.5]} 24... Bf4 {[%clk 0:02:38]}
25. Bxf4 {[%clk 0:05:59.8]} 25... Nxf4 {[%clk 0:02:38]} 26. g3 {[%clk
0:05:56.4]} 26... Nd5 {[%clk 0:02:01.6]} 27. c4 {[%clk 0:05:22.6]} 27... Ne7
{[%clk 0:01:26]} 28. d5 {[%clk 0:05:18.7]} 28... exd5 {[%clk 0:00:58.4]} 29.
cxd5 {[%clk 0:05:20.6]} 29... Rxc1 {[%clk 0:00:11.8]} 30. Rxc1 {[%clk
0:05:22.5]} 30... Nf5 {[%clk 0:00:12.9]} 31. Bxf5 {[%clk 0:05:09.1]} 31... gxf5
{[%clk 0:00:13.5]} 32. d6 {[%clk 0:05:09]} 32... Rd8 {[%clk 0:00:02.8]} 33. Qb7
{[%clk 0:04:14.1]} 33... Rxd6 {[%clk 0:00:02.6]} 34. Re1 {[%clk 0:03:32.1]} 1-0

[Event "GrandPrix_29.05"]
[Site "Chess.com"]
[Date "2020.05.29"]
[Round "4"]
[White "VSERGUEI"]
[Black "BakuTurk"]
[Result "1-0"]
[WhiteElo "2543"]
[BlackElo "2221"]
[TimeControl "600+2"]
[EndTime "10:56:19 PDT"]
[Termination "VSERGUEI won by resignation"]

1. d4 {[%clk 0:10:01.9]} 1... Nf6 {[%clk 0:09:57.8]} 2. c4 {[%clk 0:10:02.1]}
2... e6 {[%clk 0:09:58.4]} 3. Nc3 {[%clk 0:10:02]} 3... Bb4 {[%clk 0:09:59.4]}
4. f3 {[%clk 0:10:02.9]} 4... d5 {[%clk 0:09:59.7]} 5. a3 {[%clk 0:10:03.1]}
5... Be7 {[%clk 0:09:58.3]} 6. e4 {[%clk 0:10:02.7]} 6... dxe4 {[%clk
0:09:59.3]} 7. fxe4 {[%clk 0:10:03.1]} 7... e5 {[%clk 0:10:01]} 8. d5 {[%clk
0:10:02.9]} 8... a5 {[%clk 0:09:11.6]} 9. Nf3 {[%clk 0:09:55.1]} 9... Bg4 {[%clk
0:08:58.6]} 10. h3 {[%clk 0:09:53.3]} 10... Bxf3 {[%clk 0:08:57.6]} 11. Qxf3
{[%clk 0:09:52.5]} 11... Nbd7 {[%clk 0:08:58.1]} 12. Bd3 {[%clk 0:09:48.4]}
12... Bc5 {[%clk 0:08:51.1]} 13. Bd2 {[%clk 0:09:46.4]} 13... c6 {[%clk
0:07:55.3]} 14. O-O-O {[%clk 0:09:41.7]} 14... O-O {[%clk 0:06:59.9]} 15. Kb1
{[%clk 0:09:39.6]} 15... Bd4 {[%clk 0:06:30.9]} 16. Rc1 {[%clk 0:09:27]} 16...
Nc5 {[%clk 0:06:20.9]} 17. Bc2 {[%clk 0:09:26]} 17... Qb6 {[%clk 0:06:19.4]} 18.
Ka2 {[%clk 0:08:43]} 18... Qa6 {[%clk 0:05:28.9]} 19. Qe2 {[%clk 0:08:22.2]}
19... Nfd7 {[%clk 0:05:23.8]} 20. Na4 {[%clk 0:06:53.7]} 20... Nxa4 {[%clk
0:04:58.7]} 21. Bxa4 {[%clk 0:06:52.9]} 21... Nc5 {[%clk 0:04:59.6]} 22. Bc2
{[%clk 0:06:48.3]} 22... b5 {[%clk 0:03:52.7]} 23. cxb5 {[%clk 0:06:44]} 23...
cxb5 {[%clk 0:03:53.8]} 24. Bd3 {[%clk 0:06:43.2]} 24... Qb6 {[%clk 0:03:54.9]}
25. Bxb5 {[%clk 0:06:05.8]} 25... Rab8 {[%clk 0:03:03]} 26. Rxc5 {[%clk
0:05:55]} 26... Bxc5 {[%clk 0:02:59.5]} 27. a4 {[%clk 0:05:51.8]} 27... Rfc8
{[%clk 0:02:48.1]} 28. Rc1 {[%clk 0:05:45.4]} 28... Bd4 {[%clk 0:02:38.2]} 29.
Rc6 {[%clk 0:05:39.3]} 29... Rxc6 {[%clk 0:01:27.4]} 30. dxc6 {[%clk 0:05:38.1]}
30... Qc5 {[%clk 0:01:28.6]} 31. Bxa5 {[%clk 0:05:31.4]} 31... Ra8 {[%clk
0:01:26.5]} 32. Be1 {[%clk 0:05:04.5]} 32... h6 {[%clk 0:00:52.2]} 33. Kb3
{[%clk 0:04:58.5]} 33... Qc1 {[%clk 0:00:47.5]} 34. Bb4 {[%clk 0:04:48.5]} 34...
Rc8 {[%clk 0:00:41.6]} 35. Ba3 {[%clk 0:04:29.3]} 35... g6 {[%clk 0:00:27.8]}
36. g4 {[%clk 0:04:23.5]} 36... Kg7 {[%clk 0:00:28.9]} 37. Qd3 {[%clk
0:04:18.6]} 37... Rb8 {[%clk 0:00:23.8]} 38. Qc4 {[%clk 0:03:59.3]} 38... Qe3+
{[%clk 0:00:24]} 39. Ka2 {[%clk 0:04:00.1]} 39... Qxe4 {[%clk 0:00:19.8]} 40. c7
{[%clk 0:04:00.6]} 40... Rc8 {[%clk 0:00:17.1]} 41. Ba6 {[%clk 0:03:54.4]} 1-0

[Event "GrandPrix_29.05"]
[Site "Chess.com"]
[Date "2020.05.29"]
[Round "4"]
[White "bernereremit"]
[Black "Frozygul"]
[Result "1-0"]
[WhiteElo "2217"]
[BlackElo "2145"]
[TimeControl "600+2"]
[EndTime "10:56:22 PDT"]
[Termination "bernereremit won by resignation"]

1. e4 {[%clk 0:10:01.7]} 1... Nf6 {[%clk 0:10:00.6]} 2. e5 {[%clk 0:10:01.7]}
2... Nd5 {[%clk 0:10:01.5]} 3. d4 {[%clk 0:10:03]} 3... d6 {[%clk 0:10:02.8]} 4.
Nf3 {[%clk 0:10:04.3]} 4... dxe5 {[%clk 0:10:03.4]} 5. Nxe5 {[%clk 0:10:06.2]}
5... c6 {[%clk 0:10:03.7]} 6. Be2 {[%clk 0:09:53.1]} 6... g6 {[%clk 0:10:02.2]}
7. O-O {[%clk 0:09:51.3]} 7... Bg7 {[%clk 0:10:03.6]} 8. c4 {[%clk 0:09:45]}
8... Nc7 {[%clk 0:09:57.2]} 9. Nc3 {[%clk 0:09:43.5]} 9... O-O {[%clk
0:09:53.6]} 10. Be3 {[%clk 0:09:39.9]} 10... Nd7 {[%clk 0:09:51.5]} 11. Nd3
{[%clk 0:09:27.1]} 11... e5 {[%clk 0:09:08.4]} 12. dxe5 {[%clk 0:08:53.4]} 12...
Nxe5 {[%clk 0:09:06.6]} 13. Nxe5 {[%clk 0:08:55.2]} 13... Bxe5 {[%clk
0:08:37.1]} 14. Rc1 {[%clk 0:08:23.7]} 14... Qe7 {[%clk 0:08:04.6]} 15. Qb3
{[%clk 0:06:43.5]} 15... Be6 {[%clk 0:06:26.9]} 16. Qxb7 {[%clk 0:05:44.8]}
16... Rab8 {[%clk 0:05:17.3]} 17. Qxc6 {[%clk 0:05:20.8]} 17... Rxb2 {[%clk
0:05:17.7]} 18. Rfe1 {[%clk 0:05:18.9]} 18... Rc8 {[%clk 0:02:19.6]} 19. Qa4
{[%clk 0:04:14.5]} 19... Qf6 {[%clk 0:01:28.4]} 20. Nd5 {[%clk 0:02:37.4]} 20...
Nxd5 {[%clk 0:00:47.5]} 21. cxd5 {[%clk 0:02:39.3]} 21... Rxc1 {[%clk
0:00:48.8]} 22. Bxc1 {[%clk 0:02:31.6]} 22... Bxh2+ {[%clk 0:00:31.5]} 23. Kxh2
{[%clk 0:02:20.8]} 23... Qxf2 {[%clk 0:00:32.5]} 24. Bxb2 {[%clk 0:02:08.1]}
24... Bd7 {[%clk 0:00:33.6]} 1-0

[Event "GrandPrix_29.05"]
[Site "Chess.com"]
[Date "2020.05.29"]
[Round "4"]
[White "mikolka1985"]
[Black "SpasKozhuharov"]
[Result "1-0"]
[WhiteElo "2514"]
[BlackElo "2184"]
[TimeControl "600+2"]
[EndTime "10:56:28 PDT"]
[Termination "mikolka1985 won by resignation"]

1. d4 {[%clk 0:10:01.9]} 1... d5 {[%clk 0:09:56.8]} 2. c4 {[%clk 0:10:00.8]}
2... dxc4 {[%clk 0:09:55.2]} 3. Nf3 {[%clk 0:09:58.8]} 3... Nf6 {[%clk
0:09:50.7]} 4. e3 {[%clk 0:09:58.5]} 4... e6 {[%clk 0:09:51.7]} 5. Bxc4 {[%clk
0:09:58]} 5... c5 {[%clk 0:09:53.4]} 6. O-O {[%clk 0:09:57.6]} 6... Nc6 {[%clk
0:09:55.3]} 7. Nc3 {[%clk 0:09:55.7]} 7... a6 {[%clk 0:09:55.5]} 8. dxc5 {[%clk
0:09:53.6]} 8... Bxc5 {[%clk 0:09:55.2]} 9. Qxd8+ {[%clk 0:09:52.3]} 9... Kxd8
{[%clk 0:09:57.1]} 10. Nd2 {[%clk 0:09:52.4]} 10... b5 {[%clk 0:09:46]} 11. Be2
{[%clk 0:09:52]} 11... Bb7 {[%clk 0:09:34]} 12. Nb3 {[%clk 0:09:51.6]} 12... Bb6
{[%clk 0:09:26.3]} 13. a4 {[%clk 0:09:51.3]} 13... b4 {[%clk 0:09:13.4]} 14. a5
{[%clk 0:09:50.4]} 14... Ba7 {[%clk 0:08:41.4]} 15. Na4 {[%clk 0:09:50.2]} 15...
Nd7 {[%clk 0:08:38.3]} 16. Bd2 {[%clk 0:09:28.4]} 16... Ke7 {[%clk 0:07:34.6]}
17. Rfc1 {[%clk 0:09:26.1]} 17... Rhc8 {[%clk 0:07:31.1]} 18. Nac5 {[%clk
0:09:12.2]} 18... Nxc5 {[%clk 0:07:30.1]} 19. Nxc5 {[%clk 0:09:11.9]} 19... Bxc5
{[%clk 0:07:31]} 20. Rxc5 {[%clk 0:09:09.3]} 20... Rd8 {[%clk 0:06:56]} 21. Be1
{[%clk 0:09:07.8]} 21... Rd5 {[%clk 0:06:42.2]} 22. Rc4 {[%clk 0:08:21.8]} 22...
Kf6 {[%clk 0:05:34.4]} 23. Bxb4 {[%clk 0:06:28.9]} 23... Nxb4 {[%clk 0:05:32.1]}
24. Rxb4 {[%clk 0:06:28.4]} 24... Rd2 {[%clk 0:05:27.7]} 25. Bf1 {[%clk
0:06:27.4]} 25... Bd5 {[%clk 0:04:45.8]} 26. Rb6 {[%clk 0:06:16.2]} 26... Rc8
{[%clk 0:04:33.5]} 27. Bxa6 {[%clk 0:05:12.4]} 27... Rcc2 {[%clk 0:04:31.2]} 28.
Bb7 {[%clk 0:04:58.7]} 28... Bxb7 {[%clk 0:04:26.7]} 29. Rxb7 {[%clk 0:04:58.1]}
29... Kg6 {[%clk 0:02:50.2]} 30. Rf1 {[%clk 0:04:54.1]} 30... Rxb2 {[%clk
0:02:42.6]} 31. Rxb2 {[%clk 0:04:53]} 31... Rxb2 {[%clk 0:02:44]} 32. Ra1 {[%clk
0:04:54.2]} 32... Rb7 {[%clk 0:02:45.4]} 33. a6 {[%clk 0:04:53.3]} 33... Ra7
{[%clk 0:02:46.7]} 34. Kf1 {[%clk 0:04:48]} 34... Kf5 {[%clk 0:02:45.7]} 35. Ke2
{[%clk 0:04:46]} 35... Ke4 {[%clk 0:02:46.3]} 36. Ra5 {[%clk 0:04:45.5]} 36...
e5 {[%clk 0:02:44.7]} 37. Kd2 {[%clk 0:04:44.6]} 37... h5 {[%clk 0:02:39.1]} 38.
Kc3 {[%clk 0:04:39.4]} 38... h4 {[%clk 0:02:38.8]} 39. h3 {[%clk 0:04:35.1]}
39... g5 {[%clk 0:02:38.7]} 40. Kc4 {[%clk 0:04:22.9]} 40... f5 {[%clk 0:02:38]}
41. Ra3 {[%clk 0:04:11.6]} 41... g4 {[%clk 0:02:27.9]} 42. Kc5 {[%clk
0:04:11.3]} 42... gxh3 {[%clk 0:02:27.2]} 43. gxh3 {[%clk 0:04:11]} 43... Kf3
{[%clk 0:02:27.5]} 44. Kb6 {[%clk 0:04:11.1]} 44... Rxa6+ {[%clk 0:02:06.1]} 45.
Rxa6 {[%clk 0:04:03.3]} 45... Kxf2 {[%clk 0:02:03.3]} 46. Kc5 {[%clk 0:03:36.1]}
46... Kxe3 {[%clk 0:01:47]} 47. Kd5 {[%clk 0:03:35.7]} 47... Kf4 {[%clk
0:01:38.4]} 48. Ra3 {[%clk 0:03:21.9]} 48... e4 {[%clk 0:01:26.2]} 49. Kd4
{[%clk 0:03:21.8]} 49... e3 {[%clk 0:01:23.5]} 50. Rxe3 {[%clk 0:03:19.5]} 1-0

[Event "GrandPrix_29.05"]
[Site "Chess.com"]
[Date "2020.05.29"]
[Round "4"]
[White "pheonixking2000"]
[Black "Hrant_ChessMood"]
[Result "0-1"]
[WhiteElo "2567"]
[BlackElo "2884"]
[TimeControl "600+2"]
[EndTime "10:56:41 PDT"]
[Termination "Hrant_ChessMood won by resignation"]

1. c4 {[%clk 0:10:01.9]} 1... Nf6 {[%clk 0:09:59.7]} 2. Nc3 {[%clk 0:09:56.6]}
2... g6 {[%clk 0:10:00.3]} 3. d4 {[%clk 0:09:50.7]} 3... Bg7 {[%clk 0:10:00.6]}
4. e4 {[%clk 0:09:50.9]} 4... d6 {[%clk 0:10:02]} 5. Be2 {[%clk 0:09:51.1]} 5...
O-O {[%clk 0:10:02.2]} 6. Be3 {[%clk 0:09:52]} 6... c5 {[%clk 0:09:27.9]} 7. d5
{[%clk 0:09:49.2]} 7... e6 {[%clk 0:09:26.4]} 8. Nf3 {[%clk 0:09:49.9]} 8...
exd5 {[%clk 0:09:26.9]} 9. cxd5 {[%clk 0:09:51.8]} 9... Re8 {[%clk 0:08:30]} 10.
Nd2 {[%clk 0:09:50]} 10... Na6 {[%clk 0:08:20.9]} 11. O-O {[%clk 0:09:43.3]}
11... Nc7 {[%clk 0:08:20.9]} 12. a4 {[%clk 0:09:43.6]} 12... Na6 {[%clk
0:07:44.7]} 13. Bf4 {[%clk 0:09:00.1]} 13... Nb4 {[%clk 0:07:05.4]} 14. Re1
{[%clk 0:08:59.2]} 14... b6 {[%clk 0:06:06.7]} 15. h3 {[%clk 0:08:42.5]} 15...
a6 {[%clk 0:05:31.1]} 16. Bf1 {[%clk 0:08:41.6]} 16... Ra7 {[%clk 0:04:50.4]}
17. Nc4 {[%clk 0:08:29.8]} 17... Rd7 {[%clk 0:04:22.3]} 18. Rc1 {[%clk
0:06:27.5]} 18... Bb7 {[%clk 0:04:21.7]} 19. Qf3 {[%clk 0:06:19.3]} 19... Nh5
{[%clk 0:04:09.2]} 20. Bh2 {[%clk 0:06:13]} 20... Bh6 {[%clk 0:03:31.8]} 21. g4
{[%clk 0:05:38.9]} 21... Bxc1 {[%clk 0:03:25.2]} 22. Rxc1 {[%clk 0:05:38.3]}
22... Ng7 {[%clk 0:03:16.5]} 23. Qf4 {[%clk 0:05:07.1]} 23... g5 {[%clk
0:03:03.5]} 24. Qg3 {[%clk 0:04:22.7]} 24... h5 {[%clk 0:03:04.3]} 25. h4 {[%clk
0:04:13.5]} 25... gxh4 {[%clk 0:02:56.7]} 26. Qf4 {[%clk 0:04:14.9]} 26... hxg4
{[%clk 0:02:52.5]} 27. Nxd6 {[%clk 0:04:16]} 27... g3 {[%clk 0:02:45.6]} 28.
Nxb7 {[%clk 0:03:24.5]} 28... gxh2+ {[%clk 0:02:43]} 29. Kxh2 {[%clk 0:03:26.4]}
29... Rxb7 {[%clk 0:02:44.4]} 30. Rd1 {[%clk 0:03:15.4]} 30... Rbe7 {[%clk
0:02:21.5]} 31. Bh3 {[%clk 0:03:06.3]} 31... Re5 {[%clk 0:02:04.4]} 32. Rg1
{[%clk 0:02:19.4]} 32... Qd6 {[%clk 0:02:01]} 33. Kh1 {[%clk 0:02:20.5]} 33...
Kf8 {[%clk 0:01:42]} 34. Qg4 {[%clk 0:01:49.1]} 34... Qf6 {[%clk 0:01:27]} 35.
d6 {[%clk 0:01:50.3]} 35... Nd3 {[%clk 0:01:24]} 0-1